Cogmind - Beta 15 @@@ ROGUE MODE // 2025.06.01 @ 17:35:20 Player: penis Result: Destroyed by 1Q-GZC(R) with Subdweller Machine Gun Performance ------------- Evolutions (0) 0 Regions Visited (3) 600 Robots Destroyed (21) 105 Value Destroyed (507) 507 Prototype IDs (0) 0 Alien Tech Used (0) 0 Bonus (-810) -810 TOTAL SCORE: 402 Bonus ------- Friendly Fire -810 Cogmind --------- Core Integrity 0/250 Matter 223/300 Energy 100/100 System Corruption 0% Temperature Cool (0) Movement Walking (470) Ox5 Location -10/Subcaves Parts ------- > --- POWER (1) -------- (None) > --- PROPULSION (2) --- Carbon-fiber Leg > --- UTILITY (2) ------ Huge Storage Unit > --- WEAPON (2) ------- Light Assault Rifle Grenade Launcher > --- INVENTORY (25) --- Light Ion Engine Light Ion Engine Subdweller Power Source Light Treads Light Treads Aluminum Leg Aluminum Leg Scrap Shield Assault Rifle Light Assault Rifle Light Assault Rifle Subdweller Machine Gun Subdweller Machine Gun Battle Cannon Grenade Launcher Peak State ------------ > --- POWER ------------ Ion Engine > --- PROPULSION ------- Carbon-fiber Leg Carbon-fiber Leg > --- UTILITY ---------- Huge Storage Unit > --- WEAPON ----------- Light Assault Rifle Rocket Launcher > --- INVENTORY -------- Light Ion Engine Light Ion Engine Subdweller Power Source Light Treads Light Treads Aluminum Leg Aluminum Leg Scrap Shield Assault Rifle Light Assault Rifle Light Assault Rifle Subdweller Machine Gun Subdweller Machine Gun Grenade Launcher Grenade Launcher [Rating: 13] Favorites ----------- Power Ion Engine Engine Ion Engine Propulsion Aluminum Leg Leg Aluminum Leg Utility Huge Storage Unit Device Tractor Beam Storage Huge Storage Unit Weapon Light Assault Rifle Ballistic Gun Light Assault Rifle Launcher Grenade Launcher Build | -11 -10 -10 -10 ------- Run | Yrd Mat Min Sub Slots Evolved . | . . . . Power . | . . . . Propulsion . | . . . . Utility . | . . . . Weapon . | . . . . Parts Attached 17 | 6 8 1 2 Power 2 | 1 1 . . Engine 2 | 1 1 . . Core . | . . . . Reactor . | . . . . Propulsion 6 | 2 2 . 2 Treads . | . . . . Leg 6 | 2 2 . 2 Wheel . | . . . . Hover . | . . . . Flight . | . . . . Utility 3 | 1 2 . . Device 1 | . 1 . . Storage 2 | 1 1 . . Processor . | . . . . Hackware . | . . . . Protection . | . . . . Artifact . | . . . . Weapon 6 | 2 3 1 . Energy Gun . | . . . . Energy Cannon . | . . . . Ballistic Gun 3 | 2 1 . . Ballistic Cannon . | . . . . Launcher 3 | . 2 1 . Special Weapon . | . . . . Impact Weapon . | . . . . Slashing Weapon . | . . . . Piercing Weapon . | . . . . Special Melee Weapon . | . . . . Unidentified Prototypes . | . . . . Parts Lost 6 | . 3 . 3 Power 2 | . 1 . 1 Propulsion 2 | . 1 . 1 Utility . | . . . . Weapon 2 | . 1 . 1 Highest Loss Streak 2 | . 2 . 2 To Critical Strikes . | . . . . Average Backups 11 | 1 7 10 13 Power 2 | . . 2 2 Propulsion 3 | . 2 4 4 Utility . | . . . . Weapon 5 | . 3 4 6 Tool/Special . | . . . . Unused Backups 13 | . 1 . 12 Power 3 | . . . 3 Propulsion 3 | . . . 3 Utility 2 | . 1 . 1 Weapon 5 | . . . 5 Tool/Special . | . . . . Average Slot Usage (%) 88 | . 88 100 85 Engine 13 | . 10 14 14 Leg 26 | . 23 28 27 Device 5 | . 13 14 . Storage 14 | . 14 14 14 Ballistic Gun 14 | . 14 14 14 Launcher 13 | . 11 14 14 Peak Build Rating 13 | 6 8 9 13 Average Rating 9 | 4 6 8 11 On Entrance 5 | . 6 8 9 Naked Turns . | . . . . Heaviest Build 91 | 11 91 91 91 Greatest Support 30 | 20 20 20 30 Greatest Overweight (x) 5 | . 4 4 5 Average Overweight (x) 2 | . 1 4 2 Largest Inventory Capacity 25 | 8 25 25 25 Average Capacity 21 | 6 13 25 25 Most Carried 16 | 3 10 11 16 Average Carried 12 | 1 7 10 14 Final Capacity 25 | 8 25 25 25 Final Carried 16 | 3 10 11 16 Class Distribution -------------------- 100% | Mutant Dominant Class ---------------- Mutant | -10/Materials Mutant | -10/Mines Mutant | -10/Subcaves Resources | -11 -10 -10 -10 ----------- Run | Yrd Mat Min Sub Matter Collected 645 | 237 121 . 287 Remotely 121 | . 121 . . Salvage Created 526 | . 225 . 301 Parts 37 | . 20 . 17 Haulers Intercepted . | . . . . Recyclers Shooed 1 | . 1 . . Parts Field Recycled . | . . . . Retrieved Matter . | . . . . Parts Self-Destructed 11 | . . . 11 Prevented . | . . . . Kills | -11 -10 -10 -10 ------- Run | Yrd Mat Min Sub Combat Hostiles Destroyed 15 | . 9 . 6 Guns 4 | . 3 . 1 AOE 11 | . 6 . 5 Classes Destroyed 6 | . 4 . 2 Recycler 1 | . 1 . . Watcher 2 | . 2 . . Swarmer 5 | . 5 . . Grunt 4 | . 4 . . Subdweller 6 | . . . 6 Scientist 1 | . . . 1 Thug 3 | . . . 3 Best Kill Streak 5 | . 5 . 4 Combat Bots Only 5 | . 5 . 4 Max Kills in Single Turn 3 | . 2 . 3 Gunslinging . | . . . . Exploded 3 | . 1 . 3 Melee . | . . . . Uniques/NPCs Destroyed . | . . . . Combat | -11 -10 -10 -10 -------- Run | Yrd Mat Min Sub Hostile Shots Fired 49 | . 26 . 23 Missed 10 | . 5 . 5 Hits 39 | . 21 . 18 Projectile 39 | . 21 . 18 Damage Taken 1025 | . 506 . 519 Core 251 | . 127 . 124 Absorbed by Shields . | . . . . Core Remaining (%) 100 | 100 . . . Volleys Fired 33 | . 17 . 16 Largest 2 | . 2 . 2 Hottest 53 | . 50 . 53 Shots Fired 62 | . 30 . 32 Gun 33 | . 17 . 16 Cannon . | . . . . Launcher 29 | . 13 . 16 Special . | . . . . Kinetic 33 | . 17 . 16 Thermal . | . . . . Explosive 29 | . 13 . 16 Electromagnetic . | . . . . Robot Hit Streak 10 | . 5 . 10 Robot Miss Streak 2 | . 2 . 2 Penetration Max . | . . . . Secondary Targets . | . . . . Shots Hit Robots 24 | . 9 . 15 Core Hits 36 | . 13 . 23 Critical Kills . | . . . . Critical Parts Destroyed . | . . . . Critical Strikes . | . . . . Melee Attacks . | . . . . Impact . | . . . . Slashing . | . . . . Piercing . | . . . . Sneak Attacks . | . . . . Combat Hostiles . | . . . . Follow-up Attacks . | . . . . Damage Inflicted 2351 | . 704 . 1647 Guns 178 | . 105 . 73 Cannons . | . . . . Explosions 2173 | . 599 . 1574 Melee . | . . . . Ramming . | . . . . Kinetic 178 | . 105 . 73 Thermal 96 | . 96 . . Explosive 2077 | . 503 . 1574 Electromagnetic . | . . . . Impact . | . . . . Slashing . | . . . . Piercing . | . . . . Highest Corruption . | . . . . Average Corruption . | . . . . Corruption Purged . | . . . . Corruption Blocked . | . . . . Overload Shots . | . . . . Overflow Damage 78 | . 68 . 10 Projectiles . | . . . . Explosions 78 | . 68 . 10 Melee . | . . . . Knockbacks . | . . . . Impact . | . . . . Kinetic . | . . . . Secondary . | . . . . Self-Inflicted Damage 400 | . 317 . 83 Shots 10 | . 6 . 4 Rammed . | . . . . Targets Rammed . | . . . . Kicked . | . . . . Crushed . | . . . . Highest Temperature 5 | . 5 . . Average Temperature 5 | . 5 . . Received Heat Transfer 63 | . 15 . 48 Siege Activations . | . . . . Martial Activations . | . . . . Shielding Activations . | . . . . Robots Disrupted . | . . . . Combat Hostiles . | . . . . Robots Corrupted . | . . . . Combat Hostiles . | . . . . Parts Fried . | . . . . Impact Corruptions . | . . . . Robots Melted . | . . . . Combat Hostiles . | . . . . Parts Melted . | . . . . Heat Transferred 100 | . 100 . . Parts Sabotaged . | . . . . Parts Stolen . | . . . . Parts Stripped . | . . . . Power Chain Reactions . | . . . . Alert | -11 -10 -10 -10 ------- Run | Yrd Mat Min Sub Maximum Alert Level 1 | . 1 . . Low Security (%) 89 | 100 81 100 . Level 1 10 | . 18 . . Level 2 . | . . . . Level 3 . | . . . . Level 4 . | . . . . Level 5 . | . . . . High Security . | . . . . Max Security . | . . . . Peak Influence 241 | . 241 31 . Initial 31 | . . 31 . Average 66 | . 116 2 . Influence Increases 381 | . 381 . . Destroy 0b10 Robot/C 180 | . 180 . . Destroy 0b10 Robot/NC 15 | . 15 . . Destroy Leader 44 | . 44 . . Disable Machine 45 | . 45 . . Destroy Structure 97 | . 97 . . Influence Decreases 381 | . 298 83 . Entered New Map 52 | . . 52 . Time Decay 299 | . 268 31 . Lost Part 30 | . 30 . . Squads Dispatched 1 | . 1 . . Investigation . | . . . . Extermination . | . . . . Reinforcement 1 | . 1 . . Assault . | . . . . Garrison . | . . . . Intercept . | . . . . Searches Triggered . | . . . . Construction Impeded . | . . . . Haulers Reinforced . | . . . . Active Scanning Responses . | . . . . Cargo Convoy Interrupts . | . . . . Stealth | -11 -10 -10 -10 --------- Run | Yrd Mat Min Sub Distress Signals . | . . . . Communications Jammed . | . . . . Distress Signals . | . . . . Times Spotted 29 | . 15 . 14 Peak Tracking Total 8 | . 8 . 7 Tactical Retreats . | . . . . Traps | -11 -10 -10 -10 ------- Run | Yrd Mat Min Sub Traps Triggered 1 | . . . 1 Indirectly . | . . . . Trap Hack Attempts . | . . . . Triggered . | . . . . Disarmed . | . . . . Reprogrammed . | . . . . Reused . | . . . . Traps Extracted . | . . . . Installed . | . . . . Triggered . | . . . . Machines | -11 -10 -10 -10 ---------- Run | Yrd Mat Min Sub Machines Disabled 3 | . 3 . . Max in Single Turn 3 | . 3 . . Machines Repaired . | . . . . Machines Dismantled . | . . . . Machines Sabotaged . | . . . . Overloaded Fab Kills . | . . . . Hacking | -11 -10 -10 -10 --------- Run | Yrd Mat Min Sub Machines Accessed 1 | . 1 . . Terminals 1 | . 1 . . Fabricators . | . . . . Repair Stations . | . . . . Recycling Units . | . . . . Scanalyzers . | . . . . Garrison Access . | . . . . Total Hacks 1 | . 1 . . Successful 1 | . 1 . . Failed . | . . . . Catastrophic . | . . . . Database Lockouts . | . . . . Manual . | . . . . Terminals 1 | . 1 . . Fabricators . | . . . . Repair Stations . | . . . . Recycling Units . | . . . . Scanalyzers . | . . . . Garrison Access . | . . . . Terminal Hacks 1 | . 1 . . Record 1 | . 1 . . Fabricator Hacks . | . . . . Repair Station Hacks . | . . . . Recycling Unit Hacks . | . . . . Scanalyzer . | . . . . Garrison Access Hacks . | . . . . Unauthorized Hacks . | . . . . Terminals . | . . . . Fabricators . | . . . . Repair Stations . | . . . . Recycling Units . | . . . . Scanalyzers . | . . . . Garrison Access . | . . . . Data Cores Recovered . | . . . . Used . | . . . . Hacking Detections . | . . . . Full Trace Events . | . . . . Feedback Events . | . . . . Feedback Blocked . | . . . . Robot Schematics Acquired . | . . . . Robots Built . | . . . . Authchips . | . . . . Time . | . . . . Total Robot Build Rating . | . . . . Part Schematics Acquired . | . . . . Parts Built . | . . . . Authchips . | . . . . Time . | . . . . Total Part Build Rating . | . . . . Parts Repaired . | . . . . Time . | . . . . Parts Recycled . | . . . . Recycled Matter . | . . . . Retrieved Matter . | . . . . Retrieved Components . | . . . . Parts Scanalyzed . | . . . . Part Schematics Acquired . | . . . . Parts Damaged . | . . . . Bothacking | -11 -10 -10 -10 ------------ Run | Yrd Mat Min Sub Used RIF Installer . | . . . . Robots Hacked . | . . . . Non-combat . | . . . . Combat . | . . . . Robot Hacks Applied . | . . . . Relay Couplers Released . | . . . . Fabnet Peak Effective % . | . . . . Robots Rewired . | . . . . Allies Hacked . | . . . . Hacks Repelled . | . . . . Allies | -11 -10 -10 -10 -------- Run | Yrd Mat Min Sub Total Allies . | . . . . Largest Group . | . . . . Highest-Rated Group . | . . . . Highest-Rated Ally . | . . . . Total Orders . | . . . . Ally Attacks . | . . . . Total Damage . | . . . . Kills . | . . . . Allies Corrupted . | . . . . Allies Melted . | . . . . Intel | -11 -10 -10 -10 ------- Run | Yrd Mat Min Sub Active Infowar (turns) . | . . . . Robot Analysis Total . | . . . . Derelict Logs Recovered 1 | . . 1 . Drone Launches . | . . . . Drone Recoveries . | . . . . Exploration | -11 -10 -10 -10 ------------- Run | Yrd Mat Min Sub Turns Passed 3108 | 91 703 456 1858 Spaces Moved 1099 | 61 323 114 601 Core 3 | 3 . . . Treads . | . . . . Legs 1096 | 58 323 114 601 Wheels . | . . . . Hover . | . . . . Flight . | . . . . Fastest Speed 50 | 50 120 400 260 Average Speed 263 | 116 195 400 289 Slowest Speed 470 | 120 400 400 470 Overloaded Moves . | . . . . Propulsion Burnouts . | . . . . Robots Hopped . | . . . . Potential Cave-ins . | . . . . Cave-ins Triggered . | . . . . Exploration Rate (%) 27 | 5 50 20 34 Regions Visited 3 Branch Regions 2 Pre-discovered Areas . | . . . . Known Exits Taken . | . . . . Unknown Exits Taken 3 | 1 1 1 . Scrap Searched . | . . . . Spaces Dug . | . . . . Terrain Destroyed 204 | . 115 . 89 Melee . | . . . . Projectile . | . . . . AOE 204 | . 115 . 89 Terrain Rammed . | . . . . Walls Destroyed . | . . . . Machines Disabled . | . . . . Actions | -11 -10 -10 -10 --------- Run | Yrd Mat Min Sub Total 1255 | 78 366 117 694 Wait 76 | 9 2 . 65 Move 1096 | 60 322 113 601 Hop . | . . . . Pick Up 25 | 3 14 2 6 Fast Attach 8 | 6 1 . 1 Attach 9 | . 6 1 2 Detach . | . . . . Swap 1 | . 1 . . Drop 7 | . 3 1 3 Fire 33 | . 17 . 16 Melee . | . . . . Ram . | . . . . Kick . | . . . . Crush . | . . . . Escape Stasis . | . . . . Rewire . | . . . . Trap . | . . . . Miscellaneous . | . . . . Route ------- -11/Scrapyard -10/Materials -10/Mines (discovered 2 exits: Mat / [*Sub]) -10/Subcaves History --------- Turn | Location | Event 8 | -11/Scrapyard | Met Revision 17 17 | -11/Scrapyard | Discovered new exit (range 15) 92 | -11/Scrapyard | Entered Materials 316 | -10/Materials | Build established: Mutant 375 | -10/Materials | Core integrity fell below 50% 379 | -10/Materials | Discovered new exit (range 16) 795 | -10/Materials | Entered Mines 802 | -10/Mines | Received a Rocket Launcher from a helpful Derelict 876 | -10/Mines | Discovered new exit (range 10) 892 | -10/Mines | Identified exit to Materials 1251 | -10/Mines | Entered Subcaves 1252 | -10/Subcaves | Approached by a straggling Scientist 1704 | -10/Subcaves | Ambushed by swarm of Subdwellers 3091 | -10/Subcaves | A Subdweller sparked back to life 3105 | -10/Subcaves | Core integrity fell below 20% 3109 | -10/Subcaves | Destroyed by 1Q-GZC(R) with Subdweller Machine Gun Last Messages --------------- IC-DQK(R) suffers critical hit (Destroy). U6-7PD(R) affixes Scrap Shield Fragment to Scrap Shield. Rocket Launcher destroyed. IC-DQK(R) suffers critical hit (Destroy). U6-7PD(R) destroyed. The unstable cave ceiling collapses. Acquired 16 matter. Acquired 11 matter. Acquired 17 matter. Acquired 11 matter. Acquired Battle Cannon. 7E-P6U(u) tweaks Twisted Machinery. QR-N21(R) creaks and sparks as it begins to move. 45-FJQ(R) destroyed. Ion Engine destroyed. Carbon-fiber Leg destroyed. 1Q-GZC(R) affixes Scrap Shield Fragment to Scrap Shield. [Achievement: Remodeling] Map ----- +----------------------------------------------------+ | | | | | ?????????????????????????????????????????????????? | | ?????????????????????????????????????????????????? | | ?????????????????????????????????????????????????? | | ?????????????????????????????????????????????????? | | ?????????????????????????????????????????????????? | | ?????????????????????????????????????????????????? | | ?????????????????????????????????????????????????? | | ?????????????????????????????????????????????????? | | ?????????????????????????????????????????????????? | | ?????????????????????????????????????????????????? | | ?????????????????????????????????????????????????? | | ?????????????????????????????????????????????????? | | ?????????????????????????????????????????????????? | | ?????????????????????????????????????????????????? | | ???????????????????????????#####?????????????????? | | ????????????????????####### #?????????????????? | | ????????????????????? << #?????????????????? | | ????????????????????## < ??????????????????? | | ????????????????????# &< ???????????????????? | | ????????????????????# = #???????????????????? | | ??????????" ?????#### R #???????????????????? | | ??????????# ???## # ###?????????????????? | | ???????????# ??# R #?????????????????? | | ??????????## ?# ## @ ###?????????????????? | | ?????????"""" ## ### ##???????????????????? | | ?????????"""" ## #### #????????????????????? | | ???????????#"" # ##????????????????????? | | ???????????#### ## #?????????????????????? | | ??????????????#" ####??????????????????? | | ?????????????##"""" ## ##?????????????????? | | ???????????? """ #?????????????????? | | ?????????? """ #?????????????????? | | ?????????## ####??????????????? | | ??????????# " """ ##?????????????? | | ?????????" " " ## #?????????????? | | ?????????" " "### #?????????????? | | ????????? #####?## ##?????????????? | | ?????????? #?????## #??????????????? | | ??????????? ????### ##??????????????? | | ??????????? ????# #???????????????? | | ???????????? ????# ##???????????????? | | ???????????? ## ?????## ##????????????????? | | ??????????? ??###?????## ##?????????????????? | | ???????????? ????????#### ##??????????????????? | | ????????????????????## ##???????????????????? | | ????????????????????# ##???????????????????? | | ????????????????????# ## ##??????????????????? | | ????????????????????# ## ##?????????????????? | +----------------------------------------------------+ Best States ------------- Heat Dissipation 25 Energy Generation 10 Energy Capacity 250 Matter Stores 294 Matter Capacity 300 Sight Range 16 Terrain Scan Density 10 Evasion (%) 55 Item Schematics ----------------- None Robot Schematics ------------------ None Fabricated ------------ Nothing Repaired ---------- Nothing Alien Tech Used ----------------- None Achievements -------------- Backstab Remodeling Use The Force Challenges ------------ None Game ------ Seed TowerImprinterFlightbrick Manual? 0 Play Time 00:21:29 Cumulative 1.5 hours Start 2025.06.01 @ 17:15:04 End 2025.06.01 @ 17:35:20 Sessions 1 Manual Loads 0 Difficulty Rogue Special Mode None Game No. 6 Rogue 3 Adventurer 0 Explorer 3 Win Type - Total 0 Types 0/0/0/0/0/0/0/0/0/0 Lore% 0 Gallery% 3 Achievement% 4 Wizard Run 0 Options --------- Layout 1 ASCII 0 Keyboard 0 Movement Arrows Keybinds 0 Fullscreen 1 Font 20/SmallcapsGlow Map View 27x22 Zoom Use 99% Tactical HUD 0 Map Filters NONE Filters NONE Steam 0 RUN: da58386d-93e0-42f0-a631-a7bdb6c7fe90